[Event "EIWCC 2017"]
[Site "Riga"]
[Date "2017.04.13"]
[Round "3"]
[White "Malakhova, Elizaveta"]
[Black "Erneste, Inguna"]
[Result "1-0"]
[ECO "D05"]
[WhiteElo "2324"]
[BlackElo "2168"]
[Annotator "NA"]
[PlyCount "77"]
[EventDate "2017.??.??"]
[EventType "swiss"]
[EventCountry "LAT"]
[SourceTitle "playchess.com"]
[Source "ChessBase"]
[SourceQuality "1"]
[TimeControl "40/5400+30:1800+30"]

1. d4 {[%emt 0:00:00]} d5 {[%emt 0:00:05]} 2. e3 {[%emt 0:00:00]} Nf6 {[%emt 0:01:29]} 3. Bd3 {[%emt 0:00:15]} c5 {[%emt 0:03:09]} 4. c3 {[%emt 0:00:41]} e6 {[%emt 0:11:43]} 5. f4 {[%emt 0:02:16]} Bd6 {[%emt 0:02:38]} 6. Nf3 {[%emt 0:03:01]} O-O {[%emt 0:00:35]} 7. O-O {[%emt 0:01:02]} Nbd7 {[%emt 0:00:12]} 8. Ne5 {[%emt 0:07:53]} Re8 {[%emt 0:02:32]} 9. Nd2 {[%emt 0:03:30]} Nf8 {[%emt 0:01:11]} 10. Rf3 {[%emt 0:14:47]} g6 {[%emt 0:10:28]} 11. Rh3 {[%emt 0:12:29]} N6d7 {[%emt 0:12:22]} 12. Qg4 {[%emt 0:04:54]} f5 {[%emt 0:10:38]} 13. Qg3 {[%emt 0:01:42]} Nxe5 {[%emt 0:04:32]} 14. fxe5 {[%emt 0:00:41]} Be7 {[%emt 0:00:53]} 15. Nf3 {[%emt 0:02:40]} Bd7 {[%emt 0:05:04]} 16. Bd2 {[%emt 0:03:27]} Rc8 {[%emt 0:02:02]} 17. Rf1 {[%emt 0:04:04]} a6 {[%emt 0:00:40]} 18. Bb1 {[%emt 0:01:38]} b5 {[%emt 0:05:54]} 19. Kh1 {[%emt 0:04:32]} a5 {[%emt 0:01:55]} 20. e4 {[%emt 0:02:23]} dxe4 {[%emt 0:01:32]} 21. Ng5 {[%emt 0:03:41]} Bxg5 {[%emt 0:00:47]} 22. Bxg5 {[%emt 0:00:06]} Qc7 {[%emt 0:01:26]} 23. dxc5 {[%emt 0:03:28]} Qxc5 {[%emt 0:02:14]} 24. Bf6 {[%emt 0:01:58]} Re7 {[%emt 0:04:33]} 25. Bxe7 {[%emt 0:06:00]} Qxe7 {[%emt 0:00:01]} 26. a3 {[%emt 0:00:24]} b4 {[%emt 0:03:35]} 27. axb4 {[%emt 0:05:41]} axb4 {[%emt 0:00:08]} 28. Qf4 {[%emt 0:00:20]} g5 {[%emt 0:03:44]} 29. Qd2 {[%emt 0:01:51]} g4 {[%emt 0:02:44]} 30. Rg3 {[%emt 0:01:16]} Ng6 {[%emt 0:00:50]} 31. Ba2 {[%emt 0:01:15]} Nxe5 {[%emt 0:01:39]} 32. Rxf5 {[%emt 0:01:06]} bxc3 {[%emt 0:00:12]} 33. bxc3 {[%emt 0:01:06]} Ng6 {[%emt 0:00:58]} 34. Rxg4 {[%emt 0:01:53]} Bc6 {[%emt 0:00:57]} 35. Rf1 {[%emt 0:01:00]} Kg7 {[%emt 0:01:38]} 36. h3 {[%emt 0:01:02]} Rd8 {[%emt 0:00:20]} 37. Qf2 {[%emt 0:01:50]} Ra8 {[%emt 0:02:05]} 38. Qd4+ {[%emt 0:00:39]} Kh6 {[%emt 0:00:40]} 39. Rf6 {[%emt 0:01:56]} 1-0

[Event "EIWCC 2017"]
[Site "Riga"]
[Date "2017.04.13"]
[Round "3"]
[White "Cosma, Elena-Luminita"]
[Black "Tsiganova, Monika"]
[Result "1-0"]
[ECO "A49"]
[WhiteElo "2316"]
[BlackElo "2111"]
[Annotator "NA"]
[PlyCount "89"]
[EventDate "2017.??.??"]
[EventType "swiss"]
[EventCountry "LAT"]
[SourceTitle "playchess.com"]
[Source "ChessBase"]
[SourceQuality "1"]
[TimeControl "40/5400+30:1800+30"]

1. d4 {[%emt 0:00:00]} Nf6 {[%emt 0:00:10]} 2. Nf3 {[%emt 0:00:00]} g6 {[%emt 0:00:11]} 3. g3 {[%emt 0:00:00]} Bg7 {[%emt 0:00:11]} 4. Bg2 {[%emt 0:00:00]} O-O {[%emt 0:00:28]} 5. O-O {[%emt 0:00:00]} d6 {[%emt 0:00:28]} 6. Re1 {[%emt 0:00:00]} Nbd7 {[%emt 0:02:19]} 7. e4 {[%emt 0:00:28]} e5 {[%emt 0:00:53]} 8. Nc3 {[%emt 0:00:10]} c6 {[%emt 0:01:34]} 9. a4 {[%emt 0:00:22]} a5 {[%emt 0:03:08]} 10. b3 {[%emt 0:01:39]} exd4 {[%emt 0:13:13]} 11. Nxd4 {[%emt 0:00:07]} Re8 {[%emt 0:00:38]} 12. Ba3 {[%emt 0:22:07]} Nc5 {[%emt 0:14:25]} 13. Qd2 {[%emt 0:01:35]} Qb6 $11 {[%emt 0:03:25]} 14. Bb2 {[%emt 0:07:36]} Bd7 {[%emt 0:10:03]} 15. Rad1 {[%emt 0:01:41]} Rad8 {[%emt 0:00:40]} 16. h3 {[%emt 0:01:23]} Qb4 {[%emt 0:15:22]} 17. Qc1 {[%emt 0:11:08]} d5 {[%emt 0:07:58]} 18. exd5 {[%emt 0:30:34]} Rxe1+ {[%emt 0:04:03]} 19. Rxe1 {[%emt 0:00:03]} Qxd4 {[%emt 0:05:27]} 20. Na2 {[%emt 0:00:15]} Nxb3 {[%emt 0:02:10]} 21. cxb3 {[%emt 0:00:03]} Qb6 {[%emt 0:00:15]} 22. dxc6 {[%emt 0:00:25]} Bxc6 {[%emt 0:00:23]} 23. Bxc6 {[%emt 0:00:11]} bxc6 {[%emt 0:00:15]} 24. Qc2 {[%emt 0:01:00]} Nh5 {[%emt 0:01:31]} 25. Bxg7 {[%emt 0:00:12]} Nxg7 {[%emt 0:00:24]} 26. Nc1 {[%emt 0:11:01]} Nf5 {[%emt 0:00:12]} 27. Ne2 {[%emt 0:00:57]} Qb4 {[%emt 0:06:30]} 28. Rd1 {[%emt 0:01:42]} Rxd1+ {[%emt 0:01:08]} 29. Qxd1 {[%emt 0:00:06]} Qe4 {[%emt 0:00:19]} 30. g4 {[%emt 0:02:33]} Ng7 {[%emt 0:01:05]} 31. Qd8+ {[%emt 0:01:58]} Ne8 {[%emt 0:01:12]} 32. Ng3 {[%emt 0:00:06]} Qe1+ {[%emt 0:00:16]} 33. Kg2 {[%emt 0:00:07]} Kf8 {[%emt 0:00:38]} 34. Qd4 {[%emt 0:00:37]} Qe6 {[%emt 0:00:38]} 35. Qc5+ {[%emt 0:01:20]} Kg8 {[%emt 0:00:39]} 36. Qxa5 {[%emt 0:00:27]} Qxb3 {[%emt 0:00:07]} 37. Qe5 {[%emt 0:03:21]} Ng7 {[%emt 0:02:25]} 38. Ne4 {[%emt 0:01:03]} f5 {[%emt 0:02:25]} 39. Nf6+ {[%emt 0:01:14]} Kf7 {[%emt 0:00:41]} 40. Nxh7 {[%emt 0:00:00]} fxg4 {[%emt 0:01:06]} 41. Ng5+ {[%emt 0:01:18]} Kg8 {[%emt 0:03:49]} 42. hxg4 {[%emt 0:00:25]} Qb4 {[%emt 0:00:27]} 43. f3 {[%emt 0:01:44]} Qd2+ {[%emt 0:03:40]} 44. Kh3 {[%emt 0:00:55]} Qd8 {[%emt 0:09:12]} 45. Qxg7+ 1-0

[Event "EIWCC 2017"]
[Site "Riga"]
[Date "2017.04.13"]
[Round "3"]
[White "Gvetadze, Sofio"]
[Black "Melia, Salome"]
[Result "1/2-1/2"]
[ECO "B54"]
[WhiteElo "2292"]
[BlackElo "2400"]
[Annotator "NA"]
[PlyCount "53"]
[EventDate "2017.??.??"]
[EventType "swiss"]
[EventCountry "LAT"]
[SourceTitle "playchess.com"]
[Source "ChessBase"]
[SourceQuality "1"]
[TimeControl "40/5400+30:1800+30"]

1. e4 {[%emt 0:00:00]} c5 {[%emt 0:00:13]} 2. Nf3 {[%emt 0:00:00]} d6 {[%emt 0:00:37]} 3. d4 {[%emt 0:00:00]} cxd4 {[%emt 0:00:05]} 4. Nxd4 {[%emt 0:00:02]} Nf6 {[%emt 0:00:12]} 5. f3 {[%emt 0:00:25]} Nc6 {[%emt 0:01:26]} 6. c4 {[%emt 0:00:15]} Qb6 {[%emt 0:00:24]} 7. Nc2 {[%emt 0:00:25]} g6 {[%emt 0:00:32]} 8. Nc3 {[%emt 0:00:13]} Bg7 {[%emt 0:00:21]} 9. Rb1 {[%emt 0:00:23]} Ng4 {[%emt 0:00:45] B55: Sicilian: 2...d6 3 d4 cxd4 4 Nxd4 Nf6 5 f3} (9... O-O 10. Be3 Qa5 11. Be2 Be6 12. b4 Qc7 13. Nb5 Qc8 14. Rc1 a5 15. a3 Nd7 16. O-O Nde5 17. Ncd4 axb4 18. axb4 Nxb4 19. Nxe6 fxe6 {1-0 (42) Yemelin,V (2571)-Korobov,A (2670) St Petersburg 2010}) 10. Qd2 {[%emt 0:00:19]} Nge5 11. Nd5 {[%emt 0:04:27]} Qd8 {[%emt 0:00:49]} 12. Be2 $146 {[%emt 0:08:09]} (12. b3 O-O 13. Bb2 f5 14. f4 Ng4 15. Bxg7 Kxg7 16. Bd3 e6 17. Nc3 {0-1 (43) Sipos,I (2248)-Szeberenyi,A (2385) Nyiregyhaza 2003}) 12... f5 {[%emt 0:00:57]} 13. f4 {[%emt 0:17:12]} Nf7 {[%emt 0:00:41]} 14. Bf3 {[%emt 0:04:35]} O-O {[%emt 0:04:41]} 15. O-O {[%emt 0:00:17]} fxe4 {[%emt 0:13:10]} 16. Bxe4 {[%emt 0:00:11]} e6 {[%emt 0:01:56]} 17. Nde3 {[%emt 0:01:15]} Qb6 {[%emt 0:21:40]} 18. Kh1 {[%emt 0:00:39]} a5 {[%emt 0:11:45]} 19. b3 {[%emt 0:01:54]} Nb4 {[%emt 0:09:23]} 20. a3 {[%emt 0:01:27]} Na6 {[%emt 0:05:16]} 21. b4 {[%emt 0:12:31]} axb4 {[%emt 0:00:26]} 22. axb4 {[%emt 0:00:25]} Nc5 {[%emt 0:02:44]} 23. Bf3 {[%emt 0:11:53]} Na4 {[%emt 0:00:24]} 24. Rb3 {[%emt 0:00:22]} Bd7 {[%emt 0:01:56]} 25. Rd3 {[%emt 0:08:31]} Bc6 {[%emt 0:00:30]} 26. Nd4 {[%emt 0:01:31]} Bxf3 {[%emt 0:06:27]} 27. Qd1 1/2-1/2

[Event "EIWCC 2017"]
[Site "Riga"]
[Date "2017.04.13"]
[Round "3"]
[White "Doluhanova, Evgeniya"]
[Black "Caglar, Sila"]
[Result "1-0"]
[ECO "B48"]
[WhiteElo "2287"]
[BlackElo "2093"]
[Annotator "NA"]
[PlyCount "83"]
[EventDate "2017.??.??"]
[EventType "swiss"]
[EventCountry "LAT"]
[SourceTitle "playchess.com"]
[Source "ChessBase"]
[SourceQuality "1"]
[TimeControl "40/5400+30:1800+30"]

1. e4 {[%emt 0:00:00]} c5 {[%emt 0:00:06]} 2. Nf3 {[%emt 0:00:00]} e6 {[%emt 0:00:10]} 3. d4 {[%emt 0:00:00]} cxd4 {[%emt 0:00:04]} 4. Nxd4 {[%emt 0:00:00]} Nc6 {[%emt 0:00:12]} 5. Nc3 {[%emt 0:00:00]} Qc7 {[%emt 0:00:07]} 6. Be3 {[%emt 0:01:01]} Nf6 {[%emt 0:00:52]} 7. a3 {[%emt 0:01:07]} Be7 {[%emt 0:02:08]} 8. Bd3 {[%emt 0:14:28]} a6 {[%emt 0:01:10]} 9. O-O {[%emt 0:01:37]} b5 {[%emt 0:01:28]} 10. Nb3 {[%emt 0:03:51]} O-O {[%emt 0:18:11]} 11. f4 {[%emt 0:02:18]} d6 {[%emt 0:00:56]} 12. Qf3 {[%emt 0:02:10]} Bb7 {[%emt 0:09:12]} 13. Qh3 {[%emt 0:01:20]} b4 {[%emt 0:20:02]} 14. Ne2 $11 {[%emt 0:20:57]} e5 {[%emt 0:07:14]} 15. Ng3 {[%emt 0:11:29]} bxa3 {[%emt 0:08:39]} 16. bxa3 {[%emt 0:02:07]} exf4 {[%emt 0:01:34]} 17. Rxf4 {[%emt 0:00:58]} Ne5 {[%emt 0:00:53]} 18. Raf1 {[%emt 0:14:45]} Ne8 {[%emt 0:06:45]} 19. Bd4 {[%emt 0:10:32]} Bg5 {[%emt 0:05:55]} 20. Rg4 {[%emt 0:01:48]} Bc8 {[%emt 0:06:13]} 21. Nf5 {[%emt 0:01:41]} Nxg4 {[%emt 0:00:47]} 22. Qxg4 {[%emt 0:00:06]} Bxf5 {[%emt 0:01:34]} 23. Rxf5 {[%emt 0:00:05]} Bh6 {[%emt 0:01:29]} 24. Rh5 {[%emt 0:01:53]} Qc8 {[%emt 0:00:38]} 25. Qf3 {[%emt 0:03:18]} f6 {[%emt 0:01:47]} 26. h3 {[%emt 0:03:55]} a5 {[%emt 0:00:34]} 27. a4 {[%emt 0:00:04]} Qd7 {[%emt 0:00:48]} 28. e5 {[%emt 0:00:48]} dxe5 {[%emt 0:01:54]} 29. Qxa8 {[%emt 0:00:13]} exd4 {[%emt 0:00:05]} 30. Qxa5 {[%emt 0:01:01]} Be3+ {[%emt 0:00:53]} 31. Kh1 {[%emt 0:00:07]} g6 {[%emt 0:00:08]} 32. Qd5+ {[%emt 0:00:26]} Rf7 {[%emt 0:01:31]} 33. Qxd7 {[%emt 0:01:19]} Rxd7 {[%emt 0:00:04]} 34. Rc5 {[%emt 0:00:08]} Kg7 {[%emt 0:00:56]} 35. a5 {[%emt 0:00:05]} Ra7 {[%emt 0:01:21]} 36. a6 {[%emt 0:00:23]} Nc7 {[%emt 0:00:27]} 37. Rc6 {[%emt 0:00:06]} Kf7 {[%emt 0:00:22]} 38. Rb6 {[%emt 0:00:40]} Bf4 {[%emt 0:01:27]} 39. Nxd4 {[%emt 0:00:58]} Na8 {[%emt 0:00:49]} 40. Bc4+ {[%emt 0:00:00]} Ke7 {[%emt 0:00:31]} 41. Re6+ {[%emt 0:02:12]} Kd7 {[%emt 0:01:49]} 42. Nb5 {[%emt 0:02:53]} 1-0

[Event "EIWCC 2017"]
[Site "Riga"]
[Date "2017.04.13"]
[Round "3"]
[White "Fataliyeva, Ulviyya"]
[Black "Atalik, Ekaterina"]
[Result "1/2-1/2"]
[ECO "C45"]
[WhiteElo "2287"]
[BlackElo "2429"]
[Annotator "TA"]
[PlyCount "96"]
[EventDate "2017.??.??"]
[EventType "swiss"]
[EventCountry "LAT"]
[SourceTitle "playchess.com"]
[Source "ChessBase"]
[SourceQuality "1"]
[TimeControl "40/5400+30:1800+30"]

1. e4 {[%emt 0:00:00]} e5 {[%emt 0:00:11]} 2. Nf3 {[%emt 0:00:00]} Nc6 {[%emt 0:00:06]} 3. d4 {[%emt 0:00:00]} exd4 {[%emt 0:00:17]} 4. Nxd4 {[%emt 0:00:00]} Bc5 {[%emt 0:00:58]} 5. Nxc6 {[%emt 0:00:00]} bxc6 {[%emt 0:00:21]} 6. Nc3 {[%emt 0:02:02]} Qf6 {[%emt 0:03:23]} 7. Qd2 {[%emt 0:00:34]} Bb4 {[%emt 0:01:23]} 8. a3 {[%emt 0:10:24]} Bxc3 {[%emt 0:00:23]} 9. bxc3 {[%emt 0:00:33]} d6 {[%emt 0:01:37]} 10. Bd3 {[%emt 0:04:14]} Ne7 {[%emt 0:01:01]} 11. O-O {[%emt 0:01:55]} O-O {[%emt 0:00:38]} 12. f4 {[%emt 0:07:46]} Ng6 {[%emt 0:01:02]} 13. Qe1 {[%emt 0:06:26]} Qe7 {[%emt 0:14:19]} 14. h4 {[%emt 0:16:04]} f5 {[%emt 0:09:18]} 15. h5 {[%emt 0:12:30]} Nh8 {[%emt 0:00:22]} 16. exf5 {[%emt 0:04:43]} Qxe1 {[%emt 0:00:07]} 17. Rxe1 {[%emt 0:00:03]} Bxf5 {[%emt 0:00:11]} 18. Re7 {[%emt 0:00:13]} Bxd3 {[%emt 0:05:42]} 19. cxd3 {[%emt 0:00:06]} Rf7 {[%emt 0:00:04]} 20. Rxf7 {[%emt 0:00:38]} Nxf7 {[%emt 0:00:47]} 21. Rb1 {[%emt 0:01:00]} Nd8 {[%emt 0:03:01]} 22. f5 {[%emt 0:01:45]} c5 {[%emt 0:01:34]} 23. Bg5 {[%emt 0:06:21]} Nc6 {[%emt 0:01:08]} 24. Rb7 {[%emt 0:03:30]} Rc8 {[%emt 0:00:40]} 25. Bh4 {[%emt 0:01:29]} Kf7 {[%emt 0:01:03]} 26. Kf2 {[%emt 0:01:55]} Ke8 {[%emt 0:03:04]} 27. Ke3 {[%emt 0:08:08]} Kd7 {[%emt 0:00:32]} 28. Rb1 {[%emt 0:00:35]} Re8+ {[%emt 0:01:56]} 29. Kd2 {[%emt 0:00:16]} Ne5 {[%emt 0:07:21]} 30. Re1 {[%emt 0:09:21]} c4 {[%emt 0:07:23]} 31. dxc4 {[%emt 0:02:01]} Nxc4+ {[%emt 0:01:13]} 32. Kd3 {[%emt 0:00:19]} Ne5+ {[%emt 0:00:58]} 33. Kc2 {[%emt 0:00:17]} Rf8 {[%emt 0:01:58]} 34. Rf1 {[%emt 0:00:36]} c5 {[%emt 0:08:09]} 35. Bg5 {[%emt 0:01:02]} h6 {[%emt 0:02:36]} 36. Bh4 {[%emt 0:00:30]} c4 {[%emt 0:01:43]} 37. f6 {[%emt 0:00:33]} g5 {[%emt 0:10:20]} 38. hxg6 {[%emt 0:00:26]} Nxg6 {[%emt 0:00:05]} 39. Bg3 {[%emt 0:00:25]} Ke6 {[%emt 0:01:32]} 40. Rh1 {[%emt 0:00:00]} Rxf6 {[%emt 0:04:21]} 41. Rxh6 {[%emt 0:02:49]} Kf5 {[%emt 0:02:52]} 42. Bf2 {[%emt 0:02:55]} a6 {[%emt 0:00:19]} 43. Kd2 {[%emt 0:07:55]} Re6 {[%emt 0:01:15]} 44. Be3 {[%emt 0:04:29]} Re4 {[%emt 0:01:26]} 45. Rh5+ {[%emt 0:05:48]} Ke6 {[%emt 0:01:11]} 46. Rh6 {[%emt 0:02:10]} Kf5 {[%emt 0:05:26]} 47. Rh5+ {[%emt 0:00:22]} Ke6 {[%emt 0:00:31]} 48. Rh6 {[%emt 0:00:05]} Kf5 {[%emt 0:10:29]} 1/2-1/2

[Event "EIWCC 2017"]
[Site "Riga"]
[Date "2017.04.13"]
[Round "3"]
[White "Travkina, Anastasia"]
[Black "Hapala, Elisabeth"]
[Result "1-0"]
[ECO "B48"]
[WhiteElo "2287"]
[BlackElo "2091"]
[Annotator "NA"]
[PlyCount "97"]
[EventDate "2017.??.??"]
[EventType "swiss"]
[EventCountry "LAT"]
[SourceTitle "playchess.com"]
[Source "ChessBase"]
[SourceQuality "1"]
[TimeControl "40/5400+30:1800+30"]

1. e4 {[%emt 0:00:00]} c5 {[%emt 0:00:06]} 2. Nf3 {[%emt 0:00:00]} e6 {[%emt 0:00:04]} 3. d4 {[%emt 0:00:00]} cxd4 {[%emt 0:00:04]} 4. Nxd4 {[%emt 0:00:00]} Nc6 {[%emt 0:00:04]} 5. Nc3 {[%emt 0:00:02]} Qc7 {[%emt 0:00:05]} 6. Be3 {[%emt 0:00:10]} a6 {[%emt 0:00:05]} 7. Qd2 {[%emt 0:00:07]} Nf6 {[%emt 0:00:18]} 8. f4 Bb4 {[%emt 0:03:51]} 9. Bd3 {[%emt 0:00:18]} d5 {[%emt 0:02:13]} 10. e5 {[%emt 0:00:11]} Ne4 {[%emt 0:00:47]} 11. Bxe4 {[%emt 0:00:07]} dxe4 {[%emt 0:00:04]} 12. a3 Nxd4 13. axb4 {[%emt 0:16:50]} Nf5 {[%emt 0:37:05]} 14. Nxe4 {[%emt 0:04:51]} O-O {[%emt 0:01:59]} 15. O-O {[%emt 0:49:01]} Rd8 {[%emt 0:07:06]} 16. Nd6 b5 {[%emt 0:19:49]} 17. Bc5 {[%emt 0:05:13]} Bb7 {[%emt 0:00:26]} 18. Qf2 {[%emt 0:01:39]} Nxd6 {[%emt 0:21:26]} 19. exd6 {[%emt 0:00:11]} Qc6 {[%emt 0:00:37]} 20. Ra3 {[%emt 0:00:14]} Qe4 {[%emt 0:01:49]} 21. Re3 {[%emt 0:02:22]} Qf5 {[%emt 0:02:00]} 22. Re5 {[%emt 0:01:01]} Qf6 {[%emt 0:00:02]} 23. Rg5 Qh6 {[%emt 0:01:25]} 24. Rg3 {[%emt 0:10:29]} Rd7 {[%emt 0:00:24]} 25. f5 {[%emt 0:01:37]} exf5 {[%emt 0:00:18]} 26. Qxf5 {[%emt 0:00:11]} Qe6 {[%emt 0:00:37]} 27. Qg5 {[%emt 0:02:32]} Qg6 {[%emt 0:00:05]} 28. Qe5 {[%emt 0:01:20]} f6 {[%emt 0:01:08]} 29. Qe6+ {[%emt 0:03:54]} Qf7 {[%emt 0:00:05]} 30. Rxf6 {[%emt 0:00:21]} Qxe6 {[%emt 0:00:10]} 31. Rxe6 {[%emt 0:00:01]} Rf8 {[%emt 0:01:05]} 32. Re7 {[%emt 0:00:17]} Rxe7 {[%emt 0:00:40]} 33. dxe7 {[%emt 0:00:02]} Rc8 {[%emt 0:00:24]} 34. Rd3 {[%emt 0:00:47]} Re8 {[%emt 0:00:30]} 35. Rd8 {[%emt 0:02:05]} Kf7 {[%emt 0:00:05]} 36. Kf2 {[%emt 0:00:44]} Be4 {[%emt 0:00:27]} 37. c3 {[%emt 0:00:13]} h6 {[%emt 0:00:55]} 38. g3 {[%emt 0:00:07]} Bf5 {[%emt 0:00:29]} 39. Ke3 {[%emt 0:00:29]} Bg6 {[%emt 0:00:10]} 40. Kf4 {[%emt 0:00:00]} Ke6 {[%emt 0:00:50]} 41. Rd6+ {[%emt 0:02:06]} Kf7 {[%emt 0:00:08]} 42. Rxa6 {[%emt 0:00:37]} Bd3 {[%emt 0:02:01]} 43. Rd6 {[%emt 0:03:35]} Bc4 {[%emt 0:00:20]} 44. Rd8 {[%emt 0:00:37]} Bb3 {[%emt 0:01:58]} 45. Ke5 {[%emt 0:01:02]} Bc4 {[%emt 0:01:42]} 46. Kd4 {[%emt 0:00:14]} Bb3 {[%emt 0:00:52]} 47. Bd6 {[%emt 0:00:19]} Bd1 {[%emt 0:00:40]} 48. Kc5 {[%emt 0:00:31]} Be2 {[%emt 0:00:29]} 49. b3 {[%emt 0:00:22]} 1-0

[Event "EIWCC 2017"]
[Site "Riga"]
[Date "2017.04.13"]
[Round "3"]
[White "Fuchs, Judith"]
[Black "Gundogan, Sinem Cagla"]
[Result "1-0"]
[ECO "D00"]
[WhiteElo "2274"]
[BlackElo "1885"]
[Annotator "NA"]
[PlyCount "95"]
[EventDate "2017.??.??"]
[EventType "swiss"]
[EventCountry "LAT"]
[SourceTitle "playchess.com"]
[Source "ChessBase"]
[SourceQuality "1"]
[TimeControl "40/5400+30:1800+30"]

1. d4 {[%emt 0:00:00]} d5 {[%emt 0:00:07]} 2. Bf4 {[%emt 0:00:00]} Nf6 {[%emt 0:00:21]} 3. e3 {[%emt 0:00:00]} c6 {[%emt 0:01:19]} 4. c4 {[%emt 0:00:14]} e6 {[%emt 0:01:21]} 5. Nc3 {[%emt 0:00:14]} Nbd7 {[%emt 0:03:49]} 6. h3 {[%emt 0:00:32]} Be7 {[%emt 0:00:52]} 7. Nf3 {[%emt 0:00:15]} O-O {[%emt 0:01:12]} 8. Qc2 {[%emt 0:00:15]} h6 {[%emt 0:04:31]} 9. Bd3 {[%emt 0:02:46]} dxc4 {[%emt 0:00:08]} 10. Bxc4 {[%emt 0:00:05]} b5 {[%emt 0:00:06]} 11. Be2 {[%emt 0:01:28]} Bb7 {[%emt 0:00:08]} 12. O-O {[%emt 0:01:45]} a6 {[%emt 0:00:22]} 13. Rfd1 {[%emt 0:01:23]} Qb6 {[%emt 0:07:54]} 14. a4 {[%emt 0:20:59]} Rac8 {[%emt 0:04:44]} 15. Qb3 {[%emt 0:06:49]} b4 {[%emt 0:06:42]} 16. a5 {[%emt 0:03:11]} Qa7 $11 {[%emt 0:00:07]} 17. Na4 {[%emt 0:02:38]} Nd5 {[%emt 0:05:42]} 18. Bh2 {[%emt 0:04:41]} c5 {[%emt 0:03:13]} 19. Ne5 {[%emt 0:04:29]} N7f6 {[%emt 0:19:57]} 20. dxc5 {[%emt 0:06:39]} Bxc5 {[%emt 0:00:10]} 21. Nxc5 {[%emt 0:00:09]} Qxc5 {[%emt 0:01:23]} 22. Nc4 {[%emt 0:02:39]} Rfd8 {[%emt 0:02:13]} 23. Be5 {[%emt 0:04:55]} Qe7 {[%emt 0:01:54]} 24. Bf3 {[%emt 0:07:27]} Nd7 {[%emt 0:06:30]} 25. Bd6 {[%emt 0:03:18]} Nc5 {[%emt 0:00:25]} 26. Bxe7 {[%emt 0:03:28]} Nxb3 {[%emt 0:00:07]} 27. Bxd8 {[%emt 0:00:40]} Nxa1 {[%emt 0:00:06]} 28. Nd6 {[%emt 0:01:38]} Rxd8 {[%emt 0:01:50]} 29. Nxb7 {[%emt 0:00:08]} Rb8 {[%emt 0:05:16]} 30. e4 {[%emt 0:11:09]} Nf4 {[%emt 0:02:53]} 31. Nc5 {[%emt 0:05:06]} Rb5 {[%emt 0:01:00]} 32. Nxa6 {[%emt 0:00:39]} Nb3 {[%emt 0:01:35]} 33. h4 {[%emt 0:01:04]} Nxa5 {[%emt 0:01:44]} 34. g3 {[%emt 0:00:35]} Rb6 {[%emt 0:02:54]} 35. Rd8+ {[%emt 0:01:30]} Kh7 {[%emt 0:00:09]} 36. Nc5 {[%emt 0:01:08]} Nc6 {[%emt 0:08:07]} 37. Rc8 {[%emt 0:02:17]} Ng6 {[%emt 0:01:11]} 38. Nd7 {[%emt 0:00:47]} Ra6 {[%emt 0:00:39]} 39. h5 {[%emt 0:00:22]} Nge7 {[%emt 0:03:04]} 40. Nf8+ {[%emt 0:00:00]} Kg8 {[%emt 0:00:35]} 41. Re8 {[%emt 0:01:01]} g5 {[%emt 0:03:11]} 42. Ng6+ {[%emt 0:03:45]} Kg7 {[%emt 0:00:36]} 43. Nxe7 {[%emt 0:00:23]} Nxe7 {[%emt 0:00:07]} 44. Rxe7 {[%emt 0:00:04]} Ra1+ {[%emt 0:00:14]} 45. Kg2 {[%emt 0:00:26]} Rb1 {[%emt 0:00:06]} 46. e5 {[%emt 0:01:18]} Rxb2 {[%emt 0:00:06]} 47. Rb7 {[%emt 0:00:10]} b3 {[%emt 0:01:46]} 48. Bd1 {[%emt 0:00:55]} 1-0